{"text_format":"1","workbook":"xlsx","n_sheets":2,"sheets":["Расчет","Прайс"],"not_rendered":{"charts":0,"images":0,"macros":1,"external_links":0,"defined_names":12,"comments":0,"pivot_tables":0},"unopened":[],"bounds":{"document_bytes":16777216,"sheet_cells":100000,"rows_first":2000,"rows_last":500,"rows_between":2000,"halvings":0,"cell_chars":16384,"cell_head_chars":4096},"cells_cut":0,"cells_raw":0,"read":"whole","date_system":"1900"}

{"sheet":"Расчет","index":0,"n_rows":53,"n_cols":11,"rows_kept":53,"cut":false,"hidden":false,"merged":[[1,0,1,1],[1,2,1,5],[3,1,3,5],[53,0,53,3],[49,0,49,4],[51,0,51,3],[52,0,52,3]]}
[null,null,null,null,null,null,null,null,null,null,"TOTAL профиль"]
["Ф.И.О."]
[]
[null,"Лист обсчета корпусной мебели"]
[]
[]
["№","Наименование","Примечание","Кол-во/ед.изм.","Цена","Сумма"]
[1,"Каркас",null,1,5,{"$f":"E8*D8","v":5}]
[2,"Каркас/Навесные ящики",null,2,9,{"$f":"E9*D9*0.4","v":7.2}]
[3,"TOTAL профиль",null,3,{"$f":"IFERROR(INDEX(Прайс!C:D,MATCH(Расчет!B10&Расчет!C10,Прайс!D:D,0),1),0)","v":0},{"$f":"D10*E10","v":0}]
[4,"Фасад под стекло и сетку","AGT",4,3616,14464]
[5,"Стекло",null,0,null,0]
[6,"Сетка",null,null,1,0]
[7,"Ремикс",null,0,null,0]
[8,"Полукруг. Дверка (Гнутая)",null,0,null,0]
[9,"Сложн. за угловую секцию",null,null,null,0]
[10,"Увеличение высоты",null,null,null,0]
[11,"Увеличение глубины",null,null,null,{"$f":"D18*E18","v":0}]
[12,"Ящик",null,null,null,0]
[13,"Ящик",null,null,null,0]
[14,"Дно ящика",null,null,null,0]
[15,"Ручки",null,null,null,0]
[16,"Постформинг-столешница",null,null,null,0]
[17,"Постформинг стеновой",null,null,null,0]
[18,"Водоотбойник",null,null,null,0]
[19,"AL кант для столешницы",null,null,null,0]
[20,"AL вставка",null,null,null,0]
[21,"Закругленный угол",null,null,null,0]
[22,"Скошенный угол",null,null,null,0]
[23,"Карниз",null,null,null,0]
[24,"Кант, ПВХ или AL (кромка",null,null,null,0]
[25,"на карниз)",null,null,null,0]
[26,"Освещение (Светильник)",null,null,null,0]
[27,"Трансформатор",null,null,null,0]
[28,"Подъемный механизм",null,null,null,0]
[29,"Подъемный механизм",null,null,null,0]
[30,"Демпфер",null,null,null,0]
[31,"Выкатные емкости",null,null,null,0]
[32,"Сушка",null,null,null,0]
[33,"Труба",null,null,null,0]
[34,"Фланцы",null,null,null,0]
[35,"Карзина на трубу",null,null,null,0]
[36,null,null,null,null,0]
[37,null,null,null,null,0]
[38,null,"ЛДСП",null,null,0]
[39,null,"ЛДСП/Стекло",null,null,0]
[40,null,null,null,null,0]
[41,null,null,null,null,0]
[42,null,null,null,null,0]
["Итого",null,null,null,null,{"$f":"SUM(F8:F22,F24:F48)","v":14476.2}]
[null,null,null,null,"Скидка:",{"$f":"SUM(F8:F49)","v":14476.2}]
[null,null,null,null,"столешница",{"$f":"F23","v":0}]
[null,null,null,null,"Итого:",{"$f":"F51+F52","v":14476.2}]

{"sheet":"Прайс","index":1,"n_rows":58,"n_cols":11,"rows_kept":58,"cut":false,"hidden":false,"merged":[]}
["Фасады","материал","цена",null,null,null,"Фасады под стекло и сетку"]
["фасады прямые","пластик-с/ф",4656,{"$f":"A2&B2","v":"фасады прямыепластик-с/ф"},null,null,"AGT",3616,null,null,"фасады прямые"]
["фасады прямые","пластик-с/ф с 2х стор.",5944,{"$f":"A3&B3","v":"фасады прямыепластик-с/ф с 2х стор."},null,null,"F 1-11",6464,null,null,"Фрезеровка внутренняя"]
["фасады прямые","пластик+ПВХ",4418,"фасады прямыепластик+ПВХ",null,null,"TOTAL",4339,null,null,"Фрезеровка БОР"]
["фасады прямые","пластик+ПВХ с 2х стор.",5650,"фасады прямыепластик+ПВХ с 2х стор.",null,null,null,null,null,null,"AGT профиль"]
["фасады прямые","Эмаль матовая",5500,"фасады прямыеЭмаль матовая",null,null,null,null,null,null,"TOTAL профиль"]
["фасады прямые","эмаль матовая с 2х стор.",7700,"фасады прямыеэмаль матовая с 2х стор.",null,null,null,null,null,null,"Алюмин. Профиль"]
["фасады прямые","Эмаль глян. и флиттер",6269,"фасады прямыеЭмаль глян. и флиттер",null,null,null,null,null,null,"ЛДСП"]
["фасады прямые","Эмаль глян. и флиттер с 2х стор.",10230,"фасады прямыеЭмаль глян. и флиттер с 2х стор.",null,null,null,null,null,null,"МДФ UV"]
["фасады прямые","Эмаль полиэфир",6269,"фасады прямыеЭмаль полиэфир",null,null,null,null,null,null,"NIEMANN 19 мм"]
["фасады прямые","Эмаль полиэфир с 2х стор.",10230,"фасады прямыеЭмаль полиэфир с 2х стор."]
["фасады прямые","Пластик эксклюзивный",10091,"фасады прямыеПластик эксклюзивный"]
["фасады прямые","Пластик эксклюзивный с 2х стор.",15357,"фасады прямыеПластик эксклюзивный с 2х стор."]
["фасады прямые","Ламинат Груша",3187,"фасады прямыеЛаминат Груша"]
["Фрезеровка внутренняя","Пластик",5786,"Фрезеровка внутренняяПластик"]
["Фрезеровка внутренняя","пластик с 2х стор.",7074,"Фрезеровка внутренняяпластик с 2х стор."]
["Фрезеровка внутренняя","пластик эксклюзивный",11057,"Фрезеровка внутренняяпластик эксклюзивный"]
["Фрезеровка внутренняя","пластик эксклюзивный с 2х стор.",16329,"Фрезеровка внутренняяпластик эксклюзивный с 2х стор."]
["Фрезеровка внутренняя","Ламинат груша",4068,"Фрезеровка внутренняяЛаминат груша"]
["Фрезеровка БОР","Ламинат Груша",6252,"Фрезеровка БОРЛаминат Груша"]
["Фрезеровка БОР","Пластик",6170,"Фрезеровка БОРПластик"]
["Фрезеровка БОР","пластик с 2х стор.",7458,"Фрезеровка БОРпластик с 2х стор."]
["Фрезеровка БОР","Шпон",5639,"Фрезеровка БОРШпон"]
["Фрезеровка БОР","пластик эксклюзивный",12453,"Фрезеровка БОРпластик эксклюзивный"]
["Фрезеровка БОР","пластик эксклюзивный с 2х стор.",17775,"Фрезеровка БОРпластик эксклюзивный с 2х стор."]
["AGT профиль","вставка ДВП+пластик",5486,"AGT профильвставка ДВП+пластик"]
["AGT профиль","вставка ДВП+пластик с 2х стор",7311,"AGT профильвставка ДВП+пластик с 2х стор"]
["AGT профиль","вставка ДВП+пласт. эксклюз.",9763,"AGT профильвставка ДВП+пласт. эксклюз."]
["AGT профиль","вставка ДВП+пласт. эксклюз. С 2х стор.",15809,"AGT профильвставка ДВП+пласт. эксклюз. С 2х стор."]
["AGT профиль","вставка реечная с пазом",5933,"AGT профильвставка реечная с пазом"]
["AGT профиль","вставка реечная с клином",5933,"AGT профильвставка реечная с клином"]
["AGT профиль","вставка ЛМДФ фирменная",4927,"AGT профильвставка ЛМДФ фирменная"]
["AGT профиль","Вставка ротанг",10419,"AGT профильВставка ротанг"]
["TOTAL профиль","вставка ДВП+пластик",6209,"TOTAL профильвставка ДВП+пластик"]
["TOTAL профиль","вставка ДВП+пластик с 2х стор",8034,"TOTAL профильвставка ДВП+пластик с 2х стор"]
["TOTAL профиль","вставка ДВП+пласт. эксклюз.",10486,"TOTAL профильвставка ДВП+пласт. эксклюз."]
["TOTAL профиль","вставка ДВП+пласт. эксклюз. С 2х стор.",16532,"TOTAL профильвставка ДВП+пласт. эксклюз. С 2х стор."]
["TOTAL профиль","вставка реечная с пазом",6656,"TOTAL профильвставка реечная с пазом"]
["TOTAL профиль","вставка реечная с клином",6656,"TOTAL профильвставка реечная с клином"]
["TOTAL профиль","вставка ЛМДФ фирменная",5650,"TOTAL профильвставка ЛМДФ фирменная"]
["TOTAL профиль","Вставка ротанг",11142,"TOTAL профильВставка ротанг"]
["Алюмин. Профиль","DP 1-03+МДФ+пластик",4859,"Алюмин. ПрофильDP 1-03+МДФ+пластик"]
["Алюмин. Профиль","DP 1-03+МДФ+пластик с 2х сторон",6147,"Алюмин. ПрофильDP 1-03+МДФ+пластик с 2х сторон"]
["Алюмин. Профиль","DP 1-03+ДСП+ пластик",4644,"Алюмин. ПрофильDP 1-03+ДСП+ пластик"]
["Алюмин. Профиль","A 01-16+ЛДСП",3187,"Алюмин. ПрофильA 01-16+ЛДСП"]
["Алюмин. Профиль","DP 1-09+AGT панель 18 мм",7300,"Алюмин. ПрофильDP 1-09+AGT панель 18 мм"]
["ЛДСП","ЛДСП",1752,"ЛДСПЛДСП"]
["ЛДСП","ЛДСП с накладками МДФ",2836,"ЛДСПЛДСП с накладками МДФ"]
["МДФ UV","18 мм",3932,"МДФ UV18 мм"]
["МДФ UV","10 мм",3684,"МДФ UV10 мм"]
["МДФ UV","Розы на белом 18мм",7232,"МДФ UVРозы на белом 18мм"]
["МДФ UV","Розы на черном 18мм",7232,"МДФ UVРозы на черном 18мм"]
["МДФ UV","ночь Каира 18мм",7232,"МДФ UVночь Каира 18мм"]
["МДФ UV","Глинтвейн 18мм",7232,"МДФ UVГлинтвейн 18мм"]
["NIEMANN 19 мм","F30/003 береза",9503,"NIEMANN 19 ммF30/003 береза"]
["NIEMANN 19 мм","H680 cocobolo",9503,"NIEMANN 19 ммH680 cocobolo"]
["NIEMANN 19 мм","H3734 орех",9503,"NIEMANN 19 ммH3734 орех"]
["NIEMANN 19 мм","H3030/3031 светлая/темная олива",9503,"NIEMANN 19 ммH3030/3031 светлая/темная олива"]